bitfinex/quotes_BTCUSD_20250917
["timestamp","ask_amount","ask_price","bid_price","bid_amount"]
[1758142339745,2.16023726,115820.0,115810.0,0.0001]
[1758142340194,2.16023719,115820.0,115810.0,0.0001]
[1758142342237,2.16023719,115820.0,115800.0,1.55982129]
[1758142342238,0.17269665,115810.0,115800.0,1.55982129]
[1758142342436,1.36252857,115810.0,115800.0,1.55982129]
[1758142342647,1.39889889,115810.0,115800.0,1.55982129]
[1758142351470,1.39283398,115810.0,115800.0,1.55982129]
[1758142351713,1.39888008,115810.0,115800.0,1.55982129]
[1758142353152,1.83220008,115810.0,115800.0,1.52956939]
[1758142355247,1.83420008,115810.0,115800.0,1.52956939]
[1758142363236,1.85030781,115810.0,115800.0,1.52956939]
[1758142363913,1.85078389,115810.0,115800.0,1.52956939]
[1758142365101,1.83467064,115810.0,115800.0,1.52956939]
[1758142365477,1.82863006,115810.0,115800.0,1.52956939]
[1758142365679,1.83467177,115810.0,115800.0,1.52956939]
[1758142365904,1.850783,115810.0,115800.0,1.52956939]
[1758142366106,1.84474129,115810.0,115800.0,1.52956939]
[1758142366663,1.85078824,115810.0,115800.0,1.52956939]
[1758142366788,1.8346732,115810.0,115800.0,1.52956939]
[1758142366990,2.2937451,115810.0,115800.0,1.52956939]
[1758142367435,2.2836732,115810.0,115800.0,1.52956939]
[1758142367634,2.27763006,115810.0,115800.0,1.52956939]
[1758142371124,2.29375753,115810.0,115800.0,1.52956939]
[1758142371536,2.27763006,115810.0,115800.0,1.52956939]
[1758142373167,2.2998021,115810.0,115800.0,1.52956939]
[1758142375962,2.29979107,115810.0,115800.0,1.52956939]
[1758142381475,2.29979107,115810.0,115800.0,1.52505974]
[1758142383013,1.85079107,115810.0,115800.0,1.13007343]
[1758142383216,1.87674578,115810.0,115800.0,1.13007343]
[1758142386842,1.87672741,115810.0,115800.0,1.13007343]
[1758142387469,1.85414741,115810.0,115800.0,1.13007343]
[1758142387676,1.87883741,115810.0,115800.0,1.13007343]
[1758142387848,1.95673216,115810.0,115800.0,1.13007343]
[1758142388052,1.87883741,115810.0,115800.0,1.13007343]
[1758142390662,1.87884002,115810.0,115800.0,1.13007343]
[1758142393456,1.60768681,115810.0,115800.0,1.13007343]
[1758142393713,1.87884681,115810.0,115800.0,1.13007343]
[1758142398487,1.87885124,115810.0,115800.0,1.13007343]
[1758142398716,2.29275795,115810.0,115800.0,0.52328115]
[1758142399059,0.51271157,115800.0,115790.0,1e-08]
[1758142399298,2.50641784,115800.0,115790.0,1e-08]
[1758142399486,2.53624784,115800.0,115790.0,1e-08]
[1758142399953,2.60418792,115800.0,115790.0,1e-08]
[1758142400374,2.60423482,115800.0,115790.0,1e-08]
[1758142400778,2.60723482,115800.0,115790.0,1e-08]
[1758142401517,2.60423482,115800.0,115790.0,1e-08]
[1758142401765,2.60823482,115800.0,115790.0,1e-08]
[1758142404312,2.60822477,115800.0,115790.0,1e-08]
[1758142404539,2.19431806,115800.0,115790.0,1e-08]
[1758142407143,2.24431806,115800.0,115790.0,1e-08]
[1758142410283,2.24424686,115800.0,115790.0,1e-08]
[1758142414435,2.24424574,115800.0,115790.0,1e-08]
[1758142415501,0.92663319,115790.0,115780.0,0.0004]
[1758142415716,1.3051275,115790.0,115780.0,0.0004]
[1758142415929,1.3071875,115790.0,115780.0,0.0004]
[1758142416112,1.3101875,115790.0,115780.0,0.0004]
[1758142416347,1.3136975,115790.0,115780.0,0.0004]
[1758142416562,1.3086375,115790.0,115780.0,0.00254]
[1758142416803,1.3087375,115790.0,115780.0,0.00254]
[1758142416993,1.3417475,115790.0,115780.0,0.0004]
[1758142419675,0.92784079,115790.0,115780.0,0.0004]
[1758142419881,1.3417475,115790.0,115780.0,0.0004]
[1758142420076,0.92664811,115780.0,115770.0,0.0002]
[1758142420216,1.39850242,115780.0,115770.0,0.0002]
[1758142420476,1.40356284,115780.0,115770.0,0.0002]
[1758142420843,1.41177514,115780.0,115770.0,0.0002]
[1758142421144,1.41187514,115780.0,115770.0,0.0002]
[1758142421544,1.43682514,115780.0,115770.0,0.0002]
[1758142421950,1.85073185,115780.0,115770.0,0.0002]
[1758142422735,1.85273185,115780.0,115770.0,0.0002]
[1758142423116,1.34056974,115770.0,115760.0,0.0004]
[1758142423336,1.71906447,115770.0,115760.0,0.0004]
[1758142423559,1.71906447,115770.0,115760.0,0.00254]
[1758142423776,1.72112447,115770.0,115760.0,0.00254]
[1758142424024,1.72167949,115770.0,115760.0,0.00254]
[1758142424248,1.72177949,115770.0,115760.0,0.00254]
[1758142424474,1.72958949,115770.0,115760.0,0.00254]
[1758142425130,1.73258949,115770.0,115760.0,0.0004]
[1758142425541,1.75753949,115770.0,115760.0,0.0004]
[1758142425956,1.73547443,115770.0,115760.0,0.0004]
[1758142426112,1.75754997,115770.0,115760.0,0.0004]
[1758142428454,1.82344203,115770.0,115760.0,0.0004]
[1758142429911,1.80136649,115770.0,115760.0,0.0004]
[1758142430148,1.52230858,115770.0,115760.0,0.00565]
[1758142430391,0.96510014,115770.0,115760.0,0.00565]
[1758142430594,1.79346858,115770.0,115760.0,0.00565]
[1758142431469,1.80222726,115770.0,115760.0,0.00565]
[1758142433259,1.80222726,115770.0,115760.0,0.00254]
[1758142434384,1.82717726,115770.0,115760.0,0.00254]
[1758142436746,1.82923726,115770.0,115760.0,0.00254]
[1758142437374,1.83242726,115770.0,115760.0,0.0004]
[1758142437621,1.00086882,115770.0,115760.0,0.00255]
[1758142437834,1.82923726,115770.0,115760.0,0.00255]
[1758142439347,1.83242726,115770.0,115760.0,0.00255]
[1758142439611,1.83242726,115770.0,115760.0,0.0004]
[1758142439794,0.97591882,115770.0,115760.0,0.00255]
[1758142440045,1.80747726,115770.0,115760.0,0.0004]
[1758142440262,1.79871858,115770.0,115760.0,0.0004]
[1758142440824,1.79871858,115770.0,115760.0,0.00255]
[1758142441070,0.97035014,115770.0,115760.0,0.0004]
[1758142441208,1.79871858,115770.0,115760.0,0.0004]
[1758142441418,0.97035014,115770.0,115760.0,0.00255]
[1758142441616,1.79871858,115770.0,115760.0,0.0004]
[1758142441825,1.79552858,115770.0,115760.0,0.00255]
[1758142442006,1.82160858,115770.0,115760.0,0.0004]
[1758142442217,0.99324014,115770.0,115760.0,0.00255]
[1758142442422,1.81841858,115770.0,115760.0,0.00255]
[1758142442615,1.81841858,115770.0,115760.0,0.0024]
[1758142442820,1.82134858,115770.0,115760.0,0.0004]
[1758142443099,1.79552858,115770.0,115760.0,0.0024]
[1758142443430,1.79346858,115770.0,115760.0,0.0024]
[1758142443862,1.79556858,115770.0,115760.0,0.0024]
[1758142444063,1.79849858,115770.0,115760.0,0.0024]
[1758142444277,0.96510014,115770.0,115760.0,0.0024]
[1758142444471,1.79346858,115770.0,115760.0,0.0024]
[1758142444685,1.79556858,115770.0,115760.0,0.0024]
[1758142445094,0.96510014,115770.0,115760.0,0.00554]
[1758142445293,1.79346858,115770.0,115760.0,0.00554]
[1758142447099,1.79556858,115770.0,115760.0,0.0024]
[1758142447454,1.79346858,115770.0,115760.0,0.0024]
[1758142448124,1.79556858,115770.0,115760.0,0.0024]
[1758142449123,1.81969858,115770.0,115760.0,0.0024]
[1758142449518,1.82262858,115770.0,115760.0,0.0004]
[1758142450081,1.79849858,115770.0,115760.0,0.0024]
[1758142451525,1.37367436,115770.0,115760.0,0.00554]
[1758142452373,1.78785858,115770.0,115760.0,0.00554]
[1758142453504,1.10131436,115770.0,115760.0,0.00554]
[1758142453772,1.37363436,115770.0,115760.0,0.00554]
[1758142454210,1.78781858,115770.0,115760.0,0.00554]
[1758142454424,0.95945014,115770.0,115760.0,0.00554]
[1758142454631,1.78781858,115770.0,115760.0,0.00554]
[1758142455063,1.78991858,115770.0,115760.0,0.0024]
[1758142455271,1.78781858,115770.0,115760.0,0.0024]
[1758142455820,1.78782489,115770.0,115760.0,0.0024]
[1758142456247,1.78782672,115770.0,115760.0,0.0024]
[1758142456615,1.81405672,115770.0,115760.0,0.0024]
[1758142457147,1.81405699,115770.0,115760.0,0.0024]
[1758142457960,1.81698699,115770.0,115760.0,0.0004]
[1758142459620,1.79265699,115770.0,115760.0,0.0004]
[1758142459963,1.81678699,115770.0,115760.0,0.0004]
[1758142460174,1.82149976,115770.0,115760.0,0.0004]
[1758142470694,1.91485976,115770.0,115760.0,0.0004]
[1758142478791,1.91385976,115770.0,115760.0,0.0004]
[1758142478976,1.91685976,115770.0,115760.0,0.0004]
[1758142480532,2.33104398,115770.0,115760.0,0.0004]
[1758142480974,0.51277125,115760.0,115750.0,1e-08]
[1758142481194,2.13729408,115760.0,115750.0,1e-08]
[1758142481445,2.16258408,115760.0,115750.0,1e-08]
[1758142481861,2.16258408,115760.0,115740.0,1e-08]
[1758142481862,1.75533883,115750.0,115740.0,1e-08]
[1758142482112,2.134129,115750.0,115740.0,1e-08]
[1758142482310,2.16264586,115750.0,115740.0,1e-08]
[1758142482545,1.75210164,115750.0,115740.0,1e-08]
[1758142483846,1.75253774,115750.0,115740.0,1e-08]
[1758142484868,1.75353774,115750.0,115740.0,1e-08]
[1758142485522,2.20253774,115750.0,115740.0,1e-08]
[1758142486046,1.75353774,115750.0,115740.0,1e-08]
[1758142488948,1.75253774,115750.0,115740.0,1e-08]
[1758142489388,1.75653774,115750.0,115740.0,1e-08]
[1758142493623,1.73441724,115750.0,115740.0,1e-08]
[1758142495207,1.79042761,115750.0,115740.0,1e-08]
[1758142495432,1.80645546,115750.0,115740.0,1e-08]
[1758142496137,2.19881951,115750.0,115740.0,1e-08]
[1758142496345,1.78441724,115750.0,115740.0,1e-08]
[1758142497735,1.80645491,115750.0,115740.0,1e-08]
[1758142498361,0.5128011,115740.0,115730.0,1e-08]
[1758142498589,2.60191525,115740.0,115730.0,1e-08]
[1758142498807,2.63211525,115740.0,115730.0,1e-08]
[1758142499224,2.61007758,115740.0,115730.0,1e-08]
[1758142499439,2.63210371,115740.0,115730.0,1e-08]
[1758142499646,2.63584371,115740.0,115730.0,1e-08]
[1758142500321,0.51281603,115730.0,115720.0,1e-08]
[1758142500510,1.72047637,115730.0,115720.0,1e-08]
[1758142500726,1.75077637,115730.0,115720.0,1e-08]
[1758142501157,1.75423985,115730.0,115720.0,1e-08]
[1758142501583,1.80423985,115730.0,115720.0,1e-08]
[1758142502003,1.80723985,115730.0,115720.0,1e-08]
[1758142502214,0.1728459,115710.0,115700.0,0.0004]
[1758142502443,1.47398624,115710.0,115700.0,0.0004]
[1758142502658,1.56500624,115710.0,115700.0,0.00245]
[1758142502884,1.47900084,115710.0,115700.0,0.00245]
[1758142503089,1.47910084,115710.0,115700.0,0.00245]
[1758142503545,1.47910084,115710.0,115700.0,0.00291959]
[1758142504375,1.48114084,115710.0,115700.0,0.00291959]
[1758142505110,1.50500084,115710.0,115700.0,0.00291959]
[1758142505232,1.50704084,115710.0,115700.0,0.00291959]
[1758142505855,1.48522596,115710.0,115700.0,0.00291959]
[1758142506088,1.48522596,115710.0,115700.0,0.00086959]
[1758142506319,1.49399733,115710.0,115700.0,0.00086959]
[1758142506534,1.83399733,115710.0,115700.0,0.00086959]
[1758142506732,1.85889733,115710.0,115700.0,0.00086959]
[1758142507167,1.85889733,115710.0,115700.0,0.00291959]
[1758142507507,1.85580733,115710.0,115700.0,0.00291959]
[1758142508459,1.85889733,115710.0,115700.0,0.00291959]
[1758142508890,1.85889733,115710.0,115700.0,0.00086959]
[1758142509773,1.34166538,115700.0,115690.0,0.00125092]
[1758142509981,1.30599477,115700.0,115690.0,0.00139205]
[1758142510188,1.3740575,115700.0,115690.0,0.00139205]
[1758142510363,1.4021475,115700.0,115690.0,0.00139205]
[1758142510565,1.40561158,115700.0,115690.0,0.00139205]
[1758142512557,1.82001385,115700.0,115690.0,0.00139205]
[1758142512698,1.82101385,115700.0,115690.0,0.00139205]
[1758142513309,2.19473385,115700.0,115690.0,0.00139205]
[1758142514283,0.17287578,115690.0,115680.0,0.0004]
[1758142514483,0.96596971,115690.0,115680.0,0.00359097]
[1758142514673,0.96596971,115690.0,115680.0,0.00564097]
[1758142515195,0.30614991,115690.0,115680.0,0.00564097]
[1758142515399,0.99205218,115690.0,115680.0,0.00564097]
[1758142517634,0.99285218,115690.0,115680.0,0.00564097]
[1758142518257,0.57844991,115690.0,115680.0,0.00564097]
[1758142518392,0.99285218,115690.0,115680.0,0.00564097]
[1758142518803,0.51289073,115680.0,115670.0,7e-05]
[1758142519010,1.40022466,115680.0,115670.0,0.00044022]
[1758142519340,0.98592239,115680.0,115670.0,0.00044022]
[1758142519562,1.40032466,115680.0,115670.0,0.00044022]
[1758142520358,1.81472693,115680.0,115670.0,0.00044022]
[1758142521212,2.26372693,115680.0,115670.0,0.00144022]
[1758142521442,2.26373191,115680.0,115670.0,0.00144022]
[1758142522326,2.26824728,115680.0,115670.0,0.00144022]
[1758142522544,2.27337839,115680.0,115670.0,0.00144022]
[1758142522982,2.26824839,115680.0,115670.0,0.00144022]
[1758142523452,0.58732289,115660.0,115650.0,0.0003]
[1758142523707,0.55445837,115660.0,115650.0,0.00044092]
[1758142523907,0.96886064,115660.0,115650.0,0.00044092]
[1758142524123,0.55445837,115660.0,115650.0,0.00044092]
[1758142524361,0.96886064,115660.0,115650.0,0.00044092]
[1758142524596,0.96896064,115660.0,115650.0,0.00044092]
[1758142524794,0.96896064,115660.0,115650.0,0.00344092]
[1758142525345,0.55455837,115660.0,115650.0,0.00344092]
[1758142525591,0.96896064,115660.0,115650.0,0.00344092]
[1758142526309,0.55455837,115660.0,115650.0,0.00344092]
[1758142526540,0.96896064,115660.0,115650.0,0.00344092]
[1758142527739,0.96896064,115660.0,115650.0,0.1763765]
[1758142527972,0.96896064,115660.0,115650.0,0.00344092]
[1758142528427,0.55455837,115660.0,115650.0,0.00344092]
[1758142528656,0.96896064,115660.0,115650.0,0.00344092]
[1758142529125,0.96896132,115660.0,115650.0,0.00344092]
[1758142530039,0.55455905,115660.0,115650.0,0.00344092]
[1758142530268,0.96896132,115660.0,115650.0,0.00344092]
[1758142530489,0.55455905,115660.0,115650.0,0.00344092]
[1758142530701,0.96896132,115660.0,115650.0,0.00344092]
[1758142531169,0.55455905,115660.0,115650.0,0.00344092]
[1758142531364,0.96896132,115660.0,115650.0,0.00344092]
[1758142535101,0.96896132,115660.0,115650.0,0.02073447]
[1758142535526,0.55455905,115660.0,115650.0,0.03073447]
[1758142535737,0.96896132,115660.0,115650.0,0.20367005]
[1758142535928,0.96896132,115660.0,115650.0,0.1863765]
[1758142536144,0.96896132,115660.0,115650.0,0.01344092]
[1758142536307,0.96896132,115660.0,115650.0,0.03073447]
[1758142536514,0.55455905,115660.0,115650.0,0.20367005]
[1758142536716,0.55455905,115660.0,115650.0,0.22538491]
[1758142536917,0.96896492,115660.0,115650.0,0.05244933]
[1758142537121,0.96896492,115660.0,115650.0,0.06974288]
[1758142537438,0.96896492,115660.0,115650.0,0.03073447]
[1758142537803,0.55456265,115660.0,115650.0,0.20367005]
[1758142538005,0.55456265,115660.0,115650.0,0.1863765]
[1758142538395,0.10740203,115660.0,115650.0,0.60077877]
[1758142538601,0.38112365,115660.0,115650.0,0.67949805]
[1758142538840,0.38112365,115660.0,115650.0,0.26509578]
[1758142539925,0.55404427,115660.0,115650.0,0.01344092]
[1758142540172,0.96844654,115660.0,115650.0,0.01344092]
[1758142540821,0.95242692,115660.0,115650.0,0.01344092]
[1758142541029,0.96846675,115660.0,115650.0,0.01344092]
[1758142541459,0.96846675,115660.0,115650.0,0.01334092]
[1758142543109,0.96846726,115660.0,115650.0,0.01334092]
[1758142544939,0.9684676,115660.0,115650.0,0.01334092]
[1758142545850,1.38383287,115660.0,115650.0,0.01334092]
[1758142546275,1.38383644,115660.0,115650.0,0.01334092]
[1758142546712,2.14401021,115660.0,115650.0,0.01334092]
[1758142546969,1.75387644,115660.0,115650.0,0.01334092]
[1758142547175,1.72912644,115660.0,115650.0,0.01334092]
[1758142547434,1.7291235,115660.0,115650.0,0.01334092]
[1758142547645,1.74246442,115660.0,115650.0,0.01334092]
[1758142547872,1.76721442,115660.0,115650.0,0.01334092]
[1758142548079,1.76777442,115660.0,115650.0,0.01334092]
[1758142548519,1.76777442,115660.0,115650.0,0.01034092]
[1758142548733,1.76977442,115660.0,115650.0,0.01034092]
[1758142548972,1.76969442,115660.0,115650.0,0.01034092]
[1758142549556,1.46545442,115660.0,115650.0,0.01034092]
[1758142549729,1.74494442,115660.0,115650.0,0.01034092]
[1758142549968,1.76969442,115660.0,115650.0,0.01034092]
[1758142550209,1.74494442,115660.0,115650.0,0.01034092]
[1758142550596,1.76969442,115660.0,115650.0,0.01034092]
[1758142553936,2.18457819,115660.0,115650.0,0.01034092]
[1758142554139,1.00328688,115660.0,115650.0,0.01034092]
[1758142554314,1.41817065,115660.0,115650.0,0.07063002]
[1758142554730,1.41817065,115660.0,115650.0,0.01034092]
[1758142555486,1.14201065,115660.0,115650.0,0.01034092]
[1758142555685,1.41669065,115660.0,115650.0,0.01134092]
[1758142556039,1.00180688,115660.0,115650.0,0.01134092]
[1758142556271,1.41669065,115660.0,115650.0,0.01134092]
[1758142556472,1.14201065,115660.0,115650.0,0.01134092]
[1758142557208,1.00172688,115660.0,115650.0,0.01134092]
[1758142557407,1.00172688,115660.0,115650.0,0.20157005]
[1758142557568,1.40056985,115660.0,115650.0,0.1842765]
[1758142557970,1.40056985,115660.0,115650.0,0.01134092]
[1758142558224,1.40056985,115660.0,115650.0,0.02863447]
[1758142558462,1.40056985,115660.0,115650.0,0.01863447]
[1758142558866,0.98568608,115660.0,115650.0,0.01863447]
[1758142558994,1.40056985,115660.0,115650.0,0.01863447]
[1758142559631,0.98568608,115660.0,115650.0,0.01863447]
[1758142559803,1.40056985,115660.0,115650.0,0.01863447]
[1758142561026,0.98568608,115660.0,115650.0,0.01863447]
[1758142561230,2.25901739,115660.0,115650.0,0.00134092]
[1758142561475,2.27505522,115660.0,115650.0,0.00134092]
[1758142562449,2.72405522,115660.0,115650.0,0.00134092]
[1758142562667,2.72405522,115660.0,115650.0,0.00034092]
[1758142563075,2.74731645,115660.0,115650.0,0.00034092]
[1758142563267,2.72405522,115660.0,115650.0,0.00034092]
[1758142563520,1.18141391,115660.0,115650.0,0.00034092]
[1758142563718,1.42330516,115660.0,115650.0,0.00034092]
[1758142564095,1.42330516,115660.0,115650.0,0.01763447]
[1758142564321,1.42326516,115660.0,115650.0,0.43251824]
[1758142564476,1.42326516,115660.0,115650.0,0.00034092]
[1758142564673,1.42326516,115660.0,115650.0,0.01763447]
[1758142565290,1.42326516,115660.0,115650.0,0.00034092]
[1758142565693,1.42126516,115660.0,115650.0,0.00034092]
[1758142565915,0.35774516,115660.0,115650.0,0.60545382]
[1758142566121,0.45934454,115660.0,115650.0,0.67442994]
[1758142566536,0.18482454,115660.0,115650.0,0.67442994]
[1758142566949,0.45922454,115660.0,115650.0,0.67442994]
[1758142567325,0.09955487,115660.0,115650.0,1.11946561]
[1758142567524,0.00611487,115660.0,115650.0,1.11946561]
[1758142567720,0.27446,115660.0,115650.0,1.11946561]
[1758142568359,0.27446,115660.0,115650.0,1.12829348]
[1758142568927,0.27446,115660.0,115650.0,0.28969807]
[1758142569175,0.0001,115660.0,115650.0,1.03419594]
[1758142569379,0.0001,115660.0,115650.0,0.61931217]
[1758142569577,0.27538,115660.0,115650.0,0.61931217]
[1758142569779,0.27538,115660.0,115650.0,0.62806285]
[1758142569995,0.27538,115660.0,115650.0,1.04294662]
[1758142570179,0.27538,115660.0,115650.0,0.71333252]
[1758142570541,0.27538,115660.0,115650.0,0.29844875]
[1758142570743,0.27538,115660.0,115650.0,0.62806285]
[1758142572303,0.27538,115660.0,115650.0,1.04294662]
[1758142572752,0.27538,115660.0,115650.0,1.04304662]
[1758142572961,0.0001,115660.0,115650.0,1.04304662]
[1758142573164,0.27526,115660.0,115650.0,1.04304662]
[1758142573400,0.27526,115660.0,115650.0,1.12831629]
[1758142573590,0.2751,115660.0,115650.0,0.71343252]
[1758142574985,0.44802062,115660.0,115650.0,0.29854875]
[1758142575209,0.44802062,115660.0,115650.0,0.2045284]
[1758142575423,0.44802062,115660.0,115650.0,0.03159282]
[1758142575634,0.44802062,115660.0,115650.0,0.61941217]
[1758142576058,0.2751,115660.0,115650.0,0.61941217]
[1758142576273,0.44802062,115660.0,115650.0,0.61941217]
[1758142576486,0.2751,115660.0,115650.0,0.70468184]
[1758142578315,0.0001,115660.0,115650.0,0.70468184]
[1758142578471,0.2751,115660.0,115650.0,1.11956561]
[1758142578681,0.2751,115660.0,115650.0,0.70468184]
[1758142579133,0.27502,115660.0,115650.0,0.70468184]
[1758142579332,0.27498,115660.0,115650.0,0.70468184]
[1758142579676,0.27494,115660.0,115650.0,0.70468184]
[1758142580485,0.0001,115660.0,115650.0,1.11956561]
[1758142580698,0.27494,115660.0,115650.0,1.11956561]
[1758142580932,0.27494,115660.0,115650.0,0.70468184]
[1758142583966,0.94801406,115660.0,115650.0,0.00144092]
[1758142585026,0.94801406,115660.0,115650.0,0.1743765]
[1758142585461,1.36289783,115660.0,115650.0,0.00144092]
[1758142585871,0.94801406,115660.0,115650.0,0.1743765]
[1758142586071,0.94801406,115660.0,115650.0,0.00144092]
[1758142586283,0.94801406,115660.0,115650.0,0.1743765]
[1758142588088,0.94801406,115660.0,115650.0,0.00144092]
[1758142588504,0.94801406,115660.0,115650.0,0.00134092]
[1758142589110,0.94801406,115660.0,115650.0,0.1742765]
[1758142589489,0.94801406,115660.0,115650.0,0.20902913]
[1758142590361,0.53313029,115660.0,115650.0,0.20902913]
[1758142590488,0.77509344,115660.0,115650.0,0.20902913]
[1758142590921,0.94801406,115660.0,115650.0,0.20902913]
[1758142591077,1.04145406,115660.0,115650.0,0.20902913]
[1758142591745,0.86853344,115660.0,115650.0,0.20902913]
[1758142592108,1.04145406,115660.0,115650.0,0.20902913]
[1758142596982,1.04746766,115660.0,115650.0,0.00134092]
[1758142598557,1.05243766,115660.0,115650.0,0.00134092]
[1758142598772,1.46436143,115660.0,115650.0,0.00134092]
[1758142599018,1.46732143,115660.0,115650.0,0.00134092]
[1758142599204,1.49130143,115660.0,115650.0,0.00134092]
[1758142599406,1.80732143,115660.0,115650.0,0.00134092]
[1758142599610,1.83130143,115660.0,115650.0,0.00134092]
[1758142600440,1.80732143,115660.0,115650.0,0.00134092]
[1758142601060,0.97755389,115660.0,115650.0,0.00134092]
[1758142601235,1.80732143,115660.0,115650.0,0.00134092]
[1758142601450,1.39243766,115660.0,115650.0,0.00134092]
[1758142602060,0.97258389,115660.0,115650.0,0.00134092]
[1758142602260,1.38746766,115660.0,115650.0,0.01863447]
[1758142602512,1.38646766,115660.0,115650.0,0.01863447]
[1758142603152,1.38847766,115660.0,115650.0,0.01863447]
[1758142604997,0.97359389,115660.0,115650.0,0.01863447]
[1758142605237,1.38847766,115660.0,115650.0,0.01863447]
[1758142605645,1.38847766,115660.0,115650.0,0.03782295]
[1758142605899,1.38646766,115660.0,115650.0,0.03782295]
[1758142607595,0.97158389,115660.0,115650.0,0.03782295]
[1758142607792,1.38640108,115660.0,115650.0,0.03782295]
[1758142610856,1.38640108,115660.0,115650.0,0.01863447]
[1758142611127,0.97158389,115660.0,115650.0,0.01863447]
[1758142611450,1.38640108,115660.0,115650.0,0.01863447]
[1758142612984,0.97158389,115660.0,115650.0,0.01863447]
[1758142613184,1.38640108,115660.0,115650.0,0.01863447]
[1758142613384,1.38640108,115660.0,115650.0,0.03782295]
[1758142613639,0.97158389,115660.0,115650.0,0.03782295]
[1758142613771,0.97110389,115660.0,115650.0,0.21075853]
[1758142614006,0.97110389,115660.0,115650.0,0.0205294]
[1758142614263,0.97110389,115660.0,115650.0,0.03782295]
[1758142615548,0.97110389,115660.0,115650.0,0.21075853]
[1758142615756,0.97110389,115660.0,115650.0,0.19346498]
[1758142615958,1.38592108,115660.0,115650.0,0.19346498]
[1758142617328,0.97110389,115660.0,115650.0,0.19346498]
[1758142617541,0.45814327,115660.0,115650.0,0.22361688]
[1758142618178,0.45232967,115660.0,115650.0,0.22361688]
[1758142618844,0.27362,115660.0,115650.0,0.22361688]
[1758142619459,0.27362,115660.0,115650.0,0.22371688]
[1758142621134,0.44654062,115660.0,115650.0,0.22371688]
[1758142621345,0.27362,115660.0,115650.0,0.22371688]
[1758142621557,0.27362,115660.0,115650.0,0.0507813]
[1758142621558,0.86135781,115660.0,115650.0,0.0507813]
[1758142621760,0.86135781,115660.0,115650.0,0.22371688]
[1758142621940,0.94662748,115660.0,115650.0,0.2045284]
[1758142624171,0.77370686,115660.0,115650.0,0.2045284]
[1758142624403,0.94662748,115660.0,115650.0,0.2045284]
[1758142624611,0.77370686,115660.0,115650.0,0.2045284]
[1758142624806,0.77370686,115660.0,115650.0,0.24230628]
[1758142625522,0.35888967,115660.0,115650.0,0.24230628]
[1758142625760,0.77370686,115660.0,115650.0,0.24230628]
[1758142626405,0.50018686,115660.0,115650.0,0.24230628]
[1758142626606,0.77342686,115660.0,115650.0,0.24230628]
[1758142626930,0.94634748,115660.0,115650.0,0.24230628]
[1758142627798,0.77342686,115660.0,115650.0,0.24230628]
[1758142628351,0.35860967,115660.0,115650.0,0.24230628]
[1758142628549,0.77342686,115660.0,115650.0,0.24230628]
[1758142629125,0.94634748,115660.0,115650.0,0.24230628]
[1758142629600,0.77342686,115660.0,115650.0,0.24230628]
[1758142631241,0.94634748,115660.0,115650.0,0.24230628]
[1758142631447,0.95156748,115660.0,115650.0,0.24230628]
[1758142631659,0.53675029,115660.0,115650.0,0.24230628]
[1758142631874,0.94630748,115660.0,115650.0,0.24230628]
[1758142632931,0.95152748,115660.0,115650.0,0.00144092]
[1758142633129,0.97502748,115660.0,115650.0,0.00144092]
[1758142633581,0.56021029,115660.0,115650.0,0.00144092]
[1758142633798,0.97502748,115660.0,115650.0,0.00144092]
[1758142634422,0.98373547,115660.0,115650.0,0.00144092]
[1758142636390,0.98975039,115660.0,115650.0,0.00144092]
[1758142637046,1.08319039,115660.0,115650.0,0.00144092]
[1758142637731,0.65966521,115660.0,115650.0,0.00144092]
[1758142637974,1.0744824,115660.0,115650.0,0.00144092]
[1758142646438,0.9810424,115660.0,115650.0,0.00144092]
[1758142647941,1.3210424,115660.0,115650.0,0.00144092]
[1758142648167,1.3210446,115660.0,115650.0,0.00134092]
[1758142648371,1.32104449,115660.0,115650.0,0.00134092]
[1758142651779,1.41448449,115660.0,115650.0,0.00134092]
[1758142652382,1.41448386,115660.0,115650.0,0.00134092]
[1758142654581,1.40846748,115660.0,115650.0,0.00134092]
[1758142654793,1.41448419,115660.0,115650.0,0.00134092]
[1758142656512,1.32104419,115660.0,115650.0,0.00134092]
[1758142657225,0.906227,115660.0,115650.0,0.00134092]
[1758142657441,1.32104419,115660.0,115650.0,0.00134092]
[1758142661387,1.41448419,115660.0,115650.0,0.00134092]
[1758142662614,1.82930138,115660.0,115650.0,0.00134092]
[1758142663433,1.84535107,115660.0,115650.0,0.00134092]
[1758142663861,1.84881591,115660.0,115650.0,0.00134092]
[1758142664066,1.84881591,115660.0,115650.0,0.00034092]
[1758142664260,1.84981591,115660.0,115650.0,0.00034092]
[1758142664830,0.54534091,115660.0,115650.0,0.41515811]
[1758142665044,0.00711671,115660.0,115650.0,0.6788058]
[1758142665252,0.0011,115660.0,115650.0,0.6788058]
[1758142665681,0.0011,115660.0,115650.0,1.09362299]
[1758142666123,0.0011,115660.0,115650.0,1.0997397]
[1758142666340,0.0011,115660.0,115650.0,0.68492251]
[1758142667180,0.0001,115660.0,115650.0,0.68492251]
[1758142667413,0.0001,115660.0,115650.0,0.27010532]
[1758142667648,0.0001,115660.0,115650.0,0.68692251]
[1758142667851,0.0001,115660.0,115650.0,0.68472733]
[1758142668056,0.0001,115660.0,115650.0,0.68872733]
[1758142668614,0.0001,115660.0,115650.0,0.27420532]
[1758142669350,0.0001,115660.0,115650.0,0.68882733]
[1758142670100,0.0001,115660.0,115650.0,0.68271062]
[1758142670304,0.0001,115660.0,115650.0,0.67871062]
[1758142670475,0.41472201,115670.0,115660.0,0.20307252]
[1758142670674,0.41472201,115670.0,115660.0,0.28823564]
[1758142671711,0.41472201,115670.0,115660.0,0.28833564]
[1758142672571,0.58762768,115670.0,115660.0,0.28833564]
[1758142672916,0.41472201,115670.0,115660.0,0.28833564]
[1758142673593,0.41472201,115670.0,115660.0,0.29033564]
[1758142674934,0.0001,115670.0,115660.0,0.29033564]
[1758142676172,0.41472201,115670.0,115660.0,0.29033564]
[1758142676673,0.0001,115670.0,115660.0,0.29033564]
[1758142677080,0.41472201,115670.0,115660.0,0.29033564]
[1758142677636,0.0001,115670.0,115660.0,0.29033564]
[1758142677856,0.41472201,115670.0,115660.0,0.29033564]
[1758142678067,0.27358,115670.0,115660.0,0.70495765]
[1758142678523,0.0001,115670.0,115660.0,1.39305966]
[1758142678968,0.0001,115670.0,115660.0,0.97843765]
[1758142680319,0.0001,115670.0,115660.0,0.56381564]
[1758142680533,0.0001,115670.0,115660.0,0.97843765]
[1758142686554,0.0001,115680.0,115670.0,0.20305757]
[1758142686915,0.0001,115680.0,115670.0,0.28832724]
[1758142687704,1.08750442,115680.0,115670.0,0.11542157]
[1758142687906,1.11674442,115680.0,115670.0,0.20405757]
[1758142688251,1.11674442,115680.0,115670.0,0.20415757]
[1758142689902,1.09244442,115680.0,115670.0,0.20415757]
[1758142692954,1.09244442,115680.0,115670.0,0.0312519]